[Event "Slovakian ECo-C Extraliga 2024-25"]
[Site "Slovakia"]
[Date "2024.11.23"]
[Round "1.1"]
[White "Hrbek, Stepan"]
[Black "Antoniewski, Rafal"]
[Result "1/2-1/2"]
[ECO "A50"]
[WhiteElo "2407"]
[BlackElo "2444"]
[Annotator "ChessBase"]
[PlyCount "101"]
[EventDate "2024.09.12"]
[EventType "team-tourn"]
[EventCountry "SVK"]
[SourceTitle "playchess.com"]
[Source "ChessBase"]
[SourceQuality "1"]
[TimeControl "5400+30"]

1. d4 {[%emt 0:00:12]} Nf6 {[%emt 0:00:37]} 2. c4 {[%emt 0:00:10]} b6 {[%emt 0:03:42]} 3. f3 {[%emt 0:00:39]} Nc6 {[%emt 0:00:15]} 4. Nc3 {[%emt 0:00:13]} d5 {[%emt 0:01:17]} 5. cxd5 {[%emt 0:00:30]} Nxd5 {[%emt 0:00:06]} 6. f4 {[%emt 0:00:18]} e6 {[%emt 0:22:17]} 7. e4 {[%emt 0:01:42]} Nxc3 {[%emt 0:05:55]} 8. bxc3 {[%emt 0:07:31]} Bb7 {[%emt 0:00:12]} 9. Nf3 {[%emt 0:06:09]} Be7 {[%emt 0:03:45]} 10. Bd3 {[%emt 0:03:58]} O-O {[%emt 0:00:32]} 11. O-O {[%emt 0:00:38]} Na5 {[%emt 0:00:39]} 12. Qe2 {[%emt 0:11:53]} c5 {[%emt 0:00:33]} 13. Bb2 {[%emt 0:00:23]} cxd4 {[%emt 0:03:38]} 14. cxd4 {[%emt 0:01:32]} Rc8 {[%emt 0:00:06]} 15. Rad1 {[%emt 0:06:46]} Qc7 {[%emt 0:02:18]} 16. Ne5 {[%emt 0:04:09]} f6 {[%emt 0:01:19]} 17. Ng4 {[%emt 0:02:20]} Bb4 {[%emt 0:14:38]} 18. Ne3 {[%emt 0:21:54]} Qe7 {[%emt 0:03:27]} 19. Nc2 {[%emt 0:02:13]} Bc3 {[%emt 0:01:55]} 20. Ba3 {[%emt 0:02:00]} Bxd4+ {[%emt 0:00:08]} 21. Nxd4 {[%emt 0:00:07]} Qxa3 {[%emt 0:00:05]} 22. Nxe6 {[%emt 0:00:07]} Rfe8 {[%emt 0:05:35]} 23. f5 {[%emt 0:01:55]} Re7 {[%emt 0:00:33]} 24. e5 {[%emt 0:02:34]} Qc3 {[%emt 0:00:37]} 25. exf6 {[%emt 0:01:07]} Qxf6 {[%emt 0:00:06]} 26. Be4 {[%emt 0:00:43]} Qe5 {[%emt 0:04:01]} 27. Rde1 {[%emt 0:07:28]} Qxe4 {[%emt 0:03:38]} 28. Qxe4 {[%emt 0:00:02]} Bxe4 {[%emt 0:00:07]} 29. Rxe4 {[%emt 0:00:04]} Rce8 {[%emt 0:03:01]} 30. g4 {[%emt 0:03:04]} Nb7 {[%emt 0:02:59]} 31. Rfe1 {[%emt 0:00:04]} Nd8 {[%emt 0:03:28]} 32. Ng5 {[%emt 0:03:19]} Rxe4 {[%emt 0:00:13]} 33. Rxe4 {[%emt 0:00:06]} Rxe4 {[%emt 0:00:14]} 34. Nxe4 {[%emt 0:00:08]} Nc6 {[%emt 0:01:23]} 35. Kf2 {[%emt 0:00:15]} b5 {[%emt 0:02:56]} 36. Ke3 {[%emt 0:01:32]} a5 {[%emt 0:01:25]} 37. g5 {[%emt 0:03:27]} Kf8 {[%emt 0:03:54]} 38. h4 {[%emt 0:02:15]} Ne7 {[%emt 0:04:51]} 39. Nd6 {[%emt 0:04:36]} b4 {[%emt 0:01:45]} 40. Kd4 {[%emt 0:00:58]} g6 {[%emt 0:01:17]} 41. fxg6 {[%emt 0:00:00]} Nxg6 {[%emt 0:00:00]} 42. h5 {[%emt 0:00:00]} Nf4 {[%emt 0:00:00]} 43. Kc4 {[%emt 0:00:00]} Nxh5 {[%emt 0:00:00]} 44. Kb5 {[%emt 0:00:00]} Nf4 {[%emt 0:00:00]} 45. Kxa5 {[%emt 0:00:00]} Nd5 {[%emt 0:00:00]} 46. Kb5 {[%emt 0:00:00]} Nc3+ {[%emt 0:00:00]} 47. Kxb4 {[%emt 0:00:00]} Nxa2+ {[%emt 0:00:00]} 48. Kc4 {[%emt 0:00:00]} Kg7 {[%emt 0:00:00]} 49. Ne4 {[%emt 0:00:00]} Kg6 {[%emt 0:00:00]} 50. Nf6 {[%emt 0:00:00]} Kxg5 {[%emt 0:00:00]} 51. Nxh7+ {[%emt 0:00:00]} 1/2-1/2

[Event "Slovakian ECo-C Extraliga 2024-25"]
[Site "Slovakia"]
[Date "2024.11.23"]
[Round "1.2"]
[White "Laurusas, Tomas"]
[Black "Bochnicka, Vladimir"]
[Result "1-0"]
[ECO "D63"]
[WhiteElo "2579"]
[BlackElo "2347"]
[Annotator "TA"]
[PlyCount "73"]
[EventDate "2024.09.12"]
[EventType "team-tourn"]
[EventCountry "SVK"]
[SourceTitle "playchess.com"]
[Source "ChessBase"]
[SourceQuality "1"]
[TimeControl "5400+30"]

{[%evp 16,73,28,27,39,46,34,40,34,39,45,33,57,61,56,23,29,31,26,31,37,45,76,51,77,72,67,47,56,65,58,29,99,91,145,145,275,242,272,224,262,277,282,238,273,278,297,275,313,312,591,503,670,439,421,368,395,389,466,437]} 1. Nf3 {[%emt 0:00:02]} d5 {[%emt 0:00:09]} 2. d4 {[%emt 0:01:23]} Nf6 {[%emt 0:01:12]} 3. c4 {[%emt 0:00:30]} e6 {[%emt 0:00:16]} 4. Bg5 {[%emt 0:00:25]} Be7 {[%emt 0:01:23]} 5. Nc3 {[%emt 0:00:54]} O-O {[%emt 0:00:28]} 6. e3 {[%emt 0:00:19]} Nbd7 {[%emt 0:01:00]} 7. Rc1 {[%emt 0:01:07]} a6 {[%emt 0:07:48]} 8. cxd5 {[%emt 0:08:11]} exd5 {[%emt 0:00:32]} 9. Bd3 {[%emt 0:02:36]} h6 {[%emt 0:01:50]} 10. Bf4 {[%emt 0:00:25]} c6 {[%emt 0:10:03]} 11. h3 {[%emt 0:01:35]} Re8 {[%emt 0:01:44] White is slightly better.} 12. O-O {[%emt 0:00:16]} Nf8 {[%emt 0:02:27][%cal Bd7f8,Bf8e6,Be6c5][%mdl 32]} 13. Bg3 {[%emt 0:14:55]} Ne6 {[%emt 0:05:53]} 14. Ne5 {[%emt 0:06:56]} c5 {[%emt 0:05:06]} 15. dxc5 {[%emt 0:01:16]} Nxc5 {[%emt 0:00:35]} 16. Nf3 {[%emt 0:10:58]} Nfe4 {[%emt 0:12:56]} 17. Be5 {[%emt 0:00:46]} Be6 {[%emt 0:04:10]} 18. Bb1 {[%emt 0:06:42]} Qd7 {[%emt 0:06:54]} 19. Nd4 {[%emt 0:05:20] [#] Black must now prevent b4.} Rac8 {[%emt 0:07:43]} 20. Nce2 {[%emt 0:05:57][%cal Oe5g7]} a5 {[%emt 0:07:34]} 21. Nf4 {[%emt 0:02:49] Strongly threatening Ndxe6.} Bd6 {[%emt 0:05:32]} 22. Bxd6 {[%emt 0:01:45]} Qxd6 {[%emt 0:00:11]} 23. Qe2 {[%emt 0:01:11]} Qe5 {[%emt 0:03:15]} (23... Bd7 $11 {remains equal.}) 24. Rfd1 {[%emt 0:00:48]} Red8 {[%emt 0:05:12]} (24... b6 $142) 25. Qb5 $16 {[%emt 0:02:48]} Nd6 {[%emt 0:03:21]} (25... a4 $16 26. Ndxe6 fxe6 27. Bxe4 Nxe4) 26. Qxa5 $18 {[%emt 0:00:24]} Nc4 {[%emt 0:00:22]} 27. Qc3 {[%emt 0:00:08]} Ne4 {[%emt 0:02:50]} 28. Bxe4 {[%emt 0:02:45]} Qxe4 {[%emt 0:00:12]} 29. b3 {[%emt 0:01:49]} Nd6 {[%emt 0:01:22]} 30. Qb4 {[%emt 0:00:55]} Rxc1 {[%emt 0:01:18]} 31. Rxc1 {[%emt 0:00:06]} Nf5 {[%emt 0:00:37]} 32. Qb6 {[%emt 0:03:45]} ({Weaker is} 32. Qxb7 Nxd4 33. Qb6 Ra8 $14) 32... Rd6 {[%emt 0:00:27] [#]} (32... Re8 {is a better defense.} 33. Ndxe6 (33. Qxb7 $2 {too greedy.} Nxd4 34. Kh1 Nf5 $19) 33... fxe6 34. Qxb7 Nxe3) 33. Qxb7 {[%emt 0:00:41]} Kh7 {[%emt 0:01:04]} 34. Nxf5 {[%emt 0:02:13]} Qxf5 {[%emt 0:00:16]} 35. Qc7 {[%emt 0:00:27]} Rd7 {[%emt 0:00:39]} 36. Qc2 {[%emt 0:00:14]} d4 {[%emt 0:01:15]} 37. Nxe6 {[%emt 0:00:30] Weighted Error Value: White=0.25 (precise) /Black=0.51.  Mistake:       	---       	Black=4      Inaccurate:     	White=3     	Black=3      OK:         	White=12    	---        Best:        	White=1     	---} 1-0

[Event "Slovakian ECo-C Extraliga 2024-25"]
[Site "Slovakia"]
[Date "2024.11.23"]
[Round "1.2"]
[White "Kaczur, Florian"]
[Black "Mazur, Stefan"]
[Result "1/2-1/2"]
[ECO "C47"]
[WhiteElo "2509"]
[BlackElo "2412"]
[Annotator "TA"]
[PlyCount "58"]
[EventDate "2024.09.12"]
[EventType "team-tourn"]
[EventCountry "SVK"]
[SourceTitle "playchess.com"]
[Source "ChessBase"]
[SourceQuality "1"]
[TimeControl "5400+30"]

{[%evp 17,58,-4,-1,0,0,6,14,11,30,20,23,10,7,0,0,0,0,5,10,18,10,25,17,7,9,10,6,14,61,0,0,0,77,80,83,87,87,0,72,91,91,0,67]} 1. e4 {[%emt 0:00:06]} Nc6 {[%emt 0:00:37]} 2. Nc3 {[%emt 0:01:18]} e5 {[%emt 0:02:09]} 3. Nf3 {[%emt 0:01:22]} Nf6 {[%emt 0:00:40]} 4. d4 {[%emt 0:02:14]} exd4 {[%emt 0:00:14]} 5. Nxd4 {[%emt 0:00:06]} Bb4 {[%emt 0:00:08]} 6. Nxc6 {[%emt 0:00:52]} bxc6 {[%emt 0:00:07]} 7. Bd3 {[%emt 0:00:04]} d5 {[%emt 0:00:58]} 8. exd5 {[%emt 0:02:10]} O-O {[%emt 0:01:06]} 9. O-O {[%emt 0:02:32]} cxd5 {[%emt 0:00:22]} 10. h3 $1 {[%emt 0:01:19] Dodges Bg4} Be6 {[%emt 0:04:46]} 11. Qf3 {[%emt 0:06:20]} Rb8 {[%emt 0:11:19]} 12. Ne2 {[%emt 0:10:41]} Qd7 {[%emt 0:04:44]} 13. Ng3 {[%emt 0:05:29]} Rfe8 {[%emt 0:05:36]} 14. Bf4 {[%emt 0:19:04]} Bd6 {[%emt 0:03:47]} 15. b3 {[%emt 0:00:36]} Bxf4 {[%emt 0:03:28]} 16. Qxf4 {[%emt 0:01:23]} c5 {[%emt 0:00:15]} 17. Rad1 {[%emt 0:05:40]} d4 {[%emt 0:04:10] [#]} (17... Qb7 {simplifies} 18. Rfe1 Qb4 19. Qxb4 Rxb4 20. Be2 Rb6) 18. c3 $1 {[%emt 0:09:35][%cal Bc2c3,Bc3d4][%mdl 32]} Nd5 {[%emt 0:11:04]} 19. Qh4 {[%emt 0:01:22]} h6 {[%emt 0:00:11]} 20. cxd4 {[%emt 0:08:03]} Nc3 $132 {[%emt 0:01:15][%csl LRa2,LRd1,LRd4][%mdl 2048] Black is not keeping still} 21. Rd2 {[%emt 0:02:08]} Rb4 {[%emt 0:03:42]} 22. Nh5 {[%emt 0:03:19] aiming for Qg3.} Qd6 {[%emt 0:24:35] [#]} (22... Kf8 $11) 23. Nf6+ $1 {[%emt 0:14:05]} gxf6 $11 {[%emt 0:00:14]} 24. Qxh6 {[%emt 0:00:04]} Rxd4 {[%emt 0:00:50]} (24... f5 $1 $11 25. Bxf5 (25. dxc5 Qxc5 26. Qg5+ Kf8 $11) 25... Rxd4 26. Bh7+ Kh8 27. Bg6+ Kg8) 25. Bh7+ $16 {[%emt 0:00:31]} Kh8 {[%emt 0:00:06] And now ...Qf4 would win.} 26. Bf5+ {[%emt 0:01:41][%mdl 1024] White has strong compensation.} Kg8 {[%emt 0:00:07][%cal Oe6f5]} 27. Bh7+ {[%emt 0:00:50]} Kh8 {[%emt 0:00:06] Threatens to win with ...Qf4.} 28. Bg6+ {[%emt 0:00:16]} Kg8 {[%emt 0:00:06][%cal Od6f4] Hoping for ...Qf4!} 29. Bh7+ {[%emt 0:00:04]} Kh8 {[%emt 0:00:42] Weighted Error Value: White=0.13 (very precise) /Black=0.12 (very precise) .  Mistake:       	White=1     	Black=2      Inaccurate:     	---       	Black=2      OK:         	White=6     	Black=8      Best:        	White=2     	Black=2} 1/2-1/2

[Event "Slovakian ECo-C Extraliga 2024-25"]
[Site "Slovakia"]
[Date "2024.11.23"]
[Round "1.2"]
[White "Tazbir, Marcin"]
[Black "Delgerdalai, Bayarjavkhlan"]
[Result "1-0"]
[ECO "C64"]
[WhiteElo "2493"]
[BlackElo "2347"]
[Annotator "RC"]
[PlyCount "75"]
[EventDate "2024.09.12"]
[EventType "team-tourn"]
[EventCountry "SVK"]
[SourceTitle "playchess.com"]
[Source "ChessBase"]
[SourceQuality "1"]
[TimeControl "5400+30"]

1. e4 {[%emt 0:00:03]} e5 {[%emt 0:00:12]} 2. Nf3 {[%emt 0:00:05]} Nc6 {[%emt 0:00:06]} 3. Bb5 {[%emt 0:00:04]} a6 {[%emt 0:00:06]} 4. Ba4 {[%emt 0:00:05]} Bc5 {[%emt 0:00:05]} 5. c3 {[%emt 0:01:32]} Nge7 {[%emt 0:00:08]} 6. O-O {[%emt 0:01:20]} Ng6 {[%emt 0:00:23]} 7. d4 {[%emt 0:00:19]} Ba7 {[%emt 0:00:19]} 8. Bg5 {[%emt 0:03:03]} f6 {[%emt 0:00:07]} 9. Be3 {[%emt 0:00:04]} O-O {[%emt 0:03:22]} 10. d5 {[%emt 0:08:02]} Nce7 {[%emt 0:07:56]} 11. Bxa7 {[%emt 0:01:55]} Rxa7 {[%emt 0:00:10]} 12. d6 {[%emt 0:00:04]} cxd6 {[%emt 0:10:20]} 13. Qxd6 {[%emt 0:00:08]} b5 {[%emt 0:03:25]} 14. Bb3+ {[%emt 0:05:05]} Kh8 {[%emt 0:00:15]} 15. c4 {[%emt 0:03:04]} bxc4 {[%emt 0:06:28]} 16. Bxc4 {[%emt 0:00:58]} Qc7 {[%emt 0:05:35]} 17. Qxc7 {[%emt 0:03:22]} Rxc7 {[%emt 0:00:06]} 18. b3 {[%emt 0:02:26]} Bb7 {[%emt 0:18:18]} 19. Nc3 {[%emt 0:00:19]} f5 {[%emt 0:00:32]} 20. Rad1 {[%emt 0:07:34]} fxe4 {[%emt 0:20:47]} 21. Ng5 {[%emt 0:00:57]} h6 {[%emt 0:00:05]} 22. Ngxe4 {[%emt 0:18:23]} Nf4 {[%emt 0:02:05]} 23. g3 {[%emt 0:03:54]} d5 {[%emt 0:06:52]} 24. gxf4 {[%emt 0:00:07]} Rxf4 {[%emt 0:06:35]} 25. Nxd5 {[%emt 0:04:41]} Bxd5 {[%emt 0:06:22]} 26. Rxd5 {[%emt 0:00:46]} Nxd5 {[%emt 0:00:48]} 27. Bxd5 {[%emt 0:00:04]} Rd7 {[%emt 0:01:52]} 28. Nc3 {[%emt 0:00:34]} Rg4+ {[%emt 0:00:24]} 29. Kh1 {[%emt 0:00:27]} Rd4 {[%emt 0:00:16]} 30. Bc4 {[%emt 0:00:34]} Rc7 {[%emt 0:00:56]} 31. Re1 {[%emt 0:00:38]} Rc5 {[%emt 0:00:32]} 32. Re3 {[%emt 0:00:58]} Rd2 {[%emt 0:00:30]} 33. Ne4 {[%emt 0:01:41]} Rd1+ {[%emt 0:00:05]} 34. Kg2 {[%emt 0:00:03]} Rc6 {[%emt 0:00:12]} 35. Ng3 {[%emt 0:00:20]} Rd2 {[%emt 0:00:48]} 36. a4 {[%emt 0:03:00]} Rf6 {[%emt 0:00:48]} 37. Ne4 {[%emt 0:00:07]} Rg6+ {[%emt 0:00:03]} 38. Rg3 {[%emt 0:00:22]} 1-0

[Event "Slovakian ECo-C Extraliga 2024-25"]
[Site "Slovakia"]
[Date "2024.11.23"]
[Round "1.2"]
[White "Finek, Vaclav"]
[Black "Manik, Mikulas"]
[Result "1/2-1/2"]
[ECO "D71"]
[WhiteElo "2472"]
[BlackElo "2318"]
[Annotator "TA"]
[PlyCount "54"]
[EventDate "2024.09.12"]
[EventType "team-tourn"]
[EventCountry "SVK"]
[SourceTitle "playchess.com"]
[Source "ChessBase"]
[SourceQuality "1"]
[TimeControl "5400+30"]

{[%evp 9,54,25,22,19,42,12,35,43,32,27,47,45,31,32,44,0,0,-28,-24,-13,-36,-26,-18,-33,-33,-33,-26,-12,0,-8,0,-6,-16,-50,0,-48,-6,0,0,-7,0,-24,-21,-14,-15,-50,-41]} 1. d4 {[%emt 0:00:02]} Nf6 {[%emt 0:00:02]} 2. c4 {[%emt 0:00:07]} g6 {[%emt 0:00:04]} 3. g3 {[%emt 0:00:10]} c5 {[%emt 0:00:10]} 4. d5 {[%emt 0:00:11]} b5 {[%emt 0:00:06]} 5. cxb5 {[%emt 0:00:08]} Bg7 {[%emt 0:00:16]} 6. Nc3 {[%emt 0:00:08]} a6 {[%emt 0:01:13]} 7. bxa6 {[%emt 0:00:23]} d6 {[%emt 0:00:25][%cal Od8a5] [#]} 8. a7 $1 {[%emt 0:00:27] White is slightly better.} Rxa7 {[%emt 0:00:21]} (8... Nbd7 9. Nf3) 9. Nf3 {[%emt 0:00:29][%cal Bg1f3,Bf3d2,Bd2c4,Bc4a3,Ba3b5][%mdl 32]} O-O {[%emt 0:00:21]} 10. Bg2 {[%emt 0:00:33]} Na6 {[%emt 0:01:51]} 11. O-O {[%emt 0:00:47]} Bf5 {[%emt 0:06:08]} 12. Nd2 {[%emt 0:02:00]} Nb4 {[%emt 0:02:58]} 13. Nc4 {[%emt 0:06:12]} Bc2 {[%emt 0:03:44]} 14. Qd2 {[%emt 0:05:15]} Bb3 {[%emt 0:00:17]} 15. Na3 {[%emt 0:15:17] [#]} (15. axb3 Rxa1 16. e4 Nd7 $17) 15... Bxd5 {[%emt 0:00:07]} 16. Nxd5 {[%emt 0:00:43]} Nfxd5 {[%emt 0:02:34][%cal Bf6d5,Bd5b6,Bb6a4,Ba4c3][%mdl 32]} 17. Nb5 {[%emt 0:07:39]} Ra5 {[%emt 0:00:30]} 18. Nc3 {[%emt 0:00:28]} Nb6 {[%emt 0:15:37]} 19. a3 {[%emt 0:03:14]} Na6 {[%emt 0:01:15]} 20. Qc2 {[%emt 0:03:12]} c4 {[%emt 0:02:15]} 21. Be3 {[%emt 0:01:34]} Nc5 {[%emt 0:01:47]} ({Black should play} 21... e6 $15) 22. Rad1 {[%emt 0:02:30]} (22. Nd5 $11 {should be considered.}) 22... Nca4 {[%emt 0:08:13]} 23. Nxa4 {[%emt 0:05:32]} Nxa4 {[%emt 0:00:08]} 24. Rb1 {[%emt 0:03:10]} ({Of course not} 24. Qxc4 Nxb2 25. Qc6 Nxd1 $17 (25... Rxa3 26. Rc1 $15)) 24... d5 {[%emt 0:06:52]} 25. Rfd1 {[%emt 0:03:40][%cal Og2d5]} (25. Bd2 $5 c3 26. bxc3 $14) 25... e6 {[%emt 0:00:10]} 26. Bd2 {[%emt 0:09:22] [#]} c3 $1 {[%emt 0:01:37]} 27. bxc3 {[%emt 0:01:10] [#]} Nxc3 $1 {[%emt 0:00:05] Weighted Error Value: White=0.11 (very precise) /Black=0.10 (very precise) .  Mistake:       	White=1     	Black=1      Inaccurate:     	White=4     	Black=1      OK:         	White=10    	Black=7      Best:        	White=1     	Black=2      Brilliant:      	---       	Black=2} 1/2-1/2

[Event "Slovakian ECo-C Extraliga 2024-25"]
[Site "Slovakia"]
[Date "2024.11.23"]
[Round "1.2"]
[White "Stalmach, Richard"]
[Black "Plat, Vojtech"]
[Result "1-0"]
[ECO "D97"]
[WhiteElo "2444"]
[BlackElo "2464"]
[Annotator "TA"]
[PlyCount "87"]
[EventDate "2024.09.12"]
[EventType "team-tourn"]
[EventCountry "SVK"]
[SourceTitle "playchess.com"]
[Source "ChessBase"]
[SourceQuality "1"]
[TimeControl "5400+30"]

{[%evp 17,86,13,15,31,20,10,75,47,41,45,42,33,50,43,48,47,54,52,68,28,37,34,49,0,0,-7,-6,-5,-29,-8,-16,-32,30,33,120,127,163,166,128,160,161,108,105,108,168,154,299,299,299,299,292,285,284,74,770,756,756,756,756,727,897,881,29980,29981,29981,29982,29982,29983,29983,29984,29983]} 1. d4 {[%emt 0:00:03]} Nf6 {[%emt 0:00:08]} 2. c4 {[%emt 0:00:10]} g6 {[%emt 0:00:05]} 3. Nf3 {[%emt 0:00:27]} Bg7 {[%emt 0:00:04]} 4. Nc3 {[%emt 0:00:05]} d5 {[%emt 0:00:04]} 5. Qb3 {[%emt 0:00:12]} dxc4 {[%emt 0:00:08]} 6. Qxc4 {[%emt 0:00:07]} O-O {[%emt 0:00:04]} 7. e4 {[%emt 0:00:06][%cal Be2e4,Be4e5][%mdl 32]} a6 {[%emt 0:00:05]} 8. Be2 {[%emt 0:01:04]} b5 {[%emt 0:01:03]} 9. Qb3 {[%emt 0:00:06]} Bb7 {[%emt 0:00:50]} 10. e5 {[%emt 0:01:15]} Nd5 {[%emt 0:01:45]} 11. O-O {[%emt 0:00:24]} Nb6 {[%emt 0:03:40]} (11... c5 $11 {remains equal.}) 12. a4 {[%emt 0:02:41] White is better.} bxa4 {[%emt 0:03:36]} 13. Nxa4 {[%emt 0:00:06]} Bd5 {[%emt 0:00:29]} 14. Qc3 {[%emt 0:05:49]} Nc6 {[%emt 0:03:06][%cal Bb8c6,Bc6e7,Be7f5][%mdl 32]} 15. Be3 {[%emt 0:18:38]} Nxa4 {[%emt 0:07:07]} 16. Rxa4 {[%emt 0:00:06]} a5 {[%emt 0:00:07]} 17. Rc1 {[%emt 0:11:20]} Qb8 {[%emt 0:10:27]} 18. Nd2 {[%emt 0:03:08]} e6 {[%emt 0:08:58]} 19. h4 Ne7 {[%emt 0:06:29][%cal Oc7c5]} 20. b3 {[%emt 0:27:34]} (20. Bg5 $14 Re8 21. Nc4 (21. Rxa5 Rxa5 22. Qxa5 Nf5 $15) (21. Qxc7 Bf8 $14)) 20... Nf5 $11 {[%emt 0:08:01]} 21. h5 {[%emt 0:00:11] [#]} c5 $1 {[%emt 0:02:40]} 22. Qxc5 {[%emt 0:01:04]} (22. dxc5 Bxe5 23. Qc2 (23. Qd3 $2 Rd8 $17) 23... Rc8 $17) 22... Nxe3 {[%emt 0:01:05]} 23. fxe3 {[%emt 0:00:06]} Bh6 {[%emt 0:01:07]} 24. Qc3 {[%emt 0:11:26]} (24. Rxa5 $2 Bxe3+ (24... Bxb3 25. Rxa8 Bxe3+ 26. Kf1 $16) 25. Kf1 Bxd2 $19) 24... Qb7 {[%emt 0:01:21]} (24... Qd8 $15 25. Bf3 Rc8) 25. Bf3 {[%emt 0:01:26]} (25. Rxa5 $2 Rxa5 (25... Bxg2 26. Rb5 $14) 26. Qxa5 Bxe3+ (26... Bxg2 27. Kf2 $15) 27. Kf1 Bxg2+ (27... Bxb3 28. Qc3 $11) 28. Ke1 Qe7 $19 (28... Bxd4 $2 29. Kd1 $19)) 25... Rfc8 {[%emt 0:05:08] [#]} ({Black should play} 25... f6 $1 $14) 26. Rc4 $1 $16 {[%emt 0:00:04][%mdl 512]} Rxc4 {[%emt 0:00:06]} (26... Rf8 27. Rc7) 27. bxc4 {[%emt 0:00:04]} Bxf3 {[%emt 0:00:02]} 28. gxf3 {[%emt 0:00:05]} a4 {[%emt 0:00:23]} 29. c5 {[%emt 0:03:54]} (29. hxg6 $18 hxg6 30. Ra1) 29... a3 {[%emt 0:03:26] Threatens to win with ...Qb2.} 30. Kf2 {[%emt 0:02:15][%cal Bg1f2,Bf2e2,Be2d3,Bd3c3,Bc3b3][%mdl 32] Ne4 is the strong threat.} Qe7 {[%emt 0:01:36]} (30... Bg5 $16 {is a better defense.}) 31. hxg6 $18 {[%emt 0:01:09]} Qh4+ {[%emt 0:00:13]} (31... hxg6 $16 32. Ra1 Kg7 (32... Qh4+ $2 33. Ke2 $18)) 32. Ke2 {[%emt 0:00:04]} hxg6 {[%emt 0:01:12]} 33. c6 {[%cal Bc5c6,Bc6c7][%mdl 32] c7 would now be deadly.} a2 {[%emt 0:04:16]} 34. c7 {[%emt 0:03:25]} Rc8 {[%emt 0:00:17]} (34... Qh2+ 35. Kd3 Bg5 36. c8=Q+ $18 (36. c8=R+ Rxc8 37. Qxc8+ Kg7 $18)) 35. Qb4 $2 {[%emt 0:04:59]} (35. Ne4 $18 {has better winning chances.}) 35... Qg5 $2 {[%emt 0:01:08][%mdl 8192] Black cannot hold the game after this.} (35... Qh2+ 36. Kd3 Qf2 37. Nc4 (37. f4 Bxf4 38. exf4 Qg3+ 39. Ke2 Qg2+ 40. Ke3 Qa8 $18) 37... Qxf3 38. Qb8 $18) (35... Kg7 $16) 36. Nc4 {[%emt 0:01:02] Active counter play!} Qg2+ {[%emt 0:05:59]} 37. Kd3 {[%emt 0:00:02]} Qxf3 {[%emt 0:01:09]} 38. Qb8 {[%emt 0:00:05]} Qf5+ {[%emt 0:00:16]} 39. Kc3 {[%emt 0:00:27]} Kg7 {[%emt 0:00:57]} 40. Qxc8 {[%emt 0:01:20] White mates.} Qb1 {[%emt 0:00:04] [#]} 41. Rxb1 $3 {[%emt 0:00:09]} axb1=Q {[%emt 0:00:03]} 42. Qd8 {[%emt 0:00:55]} Qe1+ {[%emt 0:02:44]} 43. Kb3 {[%emt 0:00:05]} Qb1+ {[%emt 0:07:02]} 44. Nb2 {[%emt 0:00:06] Weighted Error Value: White=0.24 (precise) /Black=0.36.  Loses game:     	---       	Black=1      Missed win:     	White=1     	---        Mistake:       	White=2     	Black=5      Inaccurate:     	White=2     	---        OK:         	White=4     	Black=12     Best:        	White=4     	Black=2      Brilliant:      	White=1     	Black=1} 1-0

[Event "Slovakian ECo-C Extraliga 2024-25"]
[Site "Slovakia"]
[Date "2024.11.23"]
[Round "1.2"]
[White "Jakab, Bela"]
[Black "Babula, Vlastimil"]
[Result "1/2-1/2"]
[ECO "C55"]
[WhiteElo "2361"]
[BlackElo "2496"]
[Annotator "TA"]
[PlyCount "45"]
[EventDate "2024.09.12"]
[EventType "team-tourn"]
[EventCountry "SVK"]
[SourceTitle "playchess.com"]
[Source "ChessBase"]
[SourceQuality "1"]
[TimeControl "5400+30"]

{[%evp 11,45,33,34,20,34,33,44,0,0,0,37,43,45,20,24,-23,-40,-42,-30,-52,-25,-24,-27,-56,-60,-69,0,0,0,0,0,-70,29,0,0,0]} 1. e4 {[%emt 0:00:05]} e5 {[%emt 0:00:10]} 2. Nf3 {[%emt 0:00:07]} Nc6 {[%emt 0:00:12]} 3. Bc4 {[%emt 0:00:09]} Nf6 {[%emt 0:00:28][%cal Bg8f6,Bf6d5,Bd5b6][%mdl 32]} 4. d3 {[%emt 0:00:16]} d5 {[%emt 0:00:39]} 5. exd5 {[%emt 0:00:40]} Nxd5 {[%emt 0:00:10]} 6. O-O {[%emt 0:00:49]} Nb6 {[%emt 0:00:41]} 7. Bb3 {[%emt 0:04:05] Ng5 is the strong threat.} Bg4 {[%emt 0:01:27]} 8. Re1 {[%emt 0:05:38][%cal Of3e5] [#] Nxe5! would now be deadly.} Qe7 {[%emt 0:02:28]} 9. Be3 {[%emt 0:05:11] White is slightly better.} O-O-O {[%emt 0:01:27]} 10. Nc3 {[%emt 0:07:42]} Kb8 {[%emt 0:09:50]} 11. a4 {[%emt 0:01:52]} a5 {[%emt 0:00:48]} 12. Qe2 {[%emt 0:20:54]} f6 {[%emt 0:03:54]} 13. Nb5 {[%emt 0:10:41]} (13. h3 $142 Bh5 14. Bxb6 cxb6 15. Nb5) 13... Nd5 $11 {[%emt 0:04:48]} 14. Bd2 {[%emt 0:06:21]} g5 {[%emt 0:37:33]} 15. d4 {[%emt 0:08:01]} Nf4 {[%emt 0:03:32]} 16. Bxf4 {[%emt 0:00:39]} gxf4 {[%emt 0:00:28]} 17. c3 {[%emt 0:04:51]} Qg7 {[%emt 0:01:46]} 18. Rad1 {[%emt 0:04:39]} exd4 {[%emt 0:06:50]} ({Black should try} 18... Bd6 $15 19. Kh1 Be7) 19. Nbxd4 {[%emt 0:02:19]} Nxd4 {[%emt 0:01:23]} 20. Rxd4 {[%emt 0:00:48]} Bd6 {[%emt 0:01:30]} 21. Be6 {[%emt 0:04:39]} ({White should play} 21. Qd3 $11) 21... f5 {[%emt 0:05:34]} ({But not} 21... Rde8 22. Re4 $11) (21... Rhe8 $1 $15 22. Re4 Bh5) 22. Qd3 {[%emt 0:01:39]} Rhe8 {[%emt 0:05:00] [#] And now ...Qg6 would win.} 23. Kf1 $1 {[%emt 0:00:27] Weighted Error Value: White=0.21 (precise) /Black=0.16 (very precise) .  Mistake:       	White=2     	Black=2      Inaccurate:     	White=3     	Black=2      OK:         	White=4     	Black=8      Best:        	---       	Black=1      Strong:       	White=1     	---} 1/2-1/2